[Event "Commonwealth Open 2019"]
[Site "Delhi"]
[Date "2019.06.30"]
[Round "2.25"]
[White "Navalgund, Niranjan"]
[Black "Saypuri Srithan"]
[Result "1/2-1/2"]
[ECO "A85"]
[WhiteElo "2326"]
[BlackElo "1816"]
[Annotator "NA"]
[PlyCount "125"]
[EventDate "2019.06.30"]
[EventType "swiss"]
[EventCountry "IND"]
[SourceTitle "playchess.com"]
[Source "ChessBase"]
[SourceQuality "1"]
[TimeControl "5400+30"]

1. d4 {[%emt 0:00:00]} f5 {[%emt 0:00:03]} 2. c4 {[%emt 0:00:11]} Nf6 {[%emt 0:00:05]} 3. Nc3 {[%emt 0:00:16]} e6 {[%emt 0:00:06]} 4. Nf3 {[%emt 0:00:45]} Be7 {[%emt 0:00:06]} 5. g3 {[%emt 0:00:50]} O-O {[%emt 0:00:16]} 6. Bg2 {[%emt 0:00:01]} d6 {[%emt 0:00:10]} 7. O-O {[%emt 0:00:29]} a5 {[%emt 0:00:07]} 8. Qc2 {[%emt 0:03:45]} Nc6 {[%emt 0:00:09]} 9. Rd1 {[%emt 0:09:55]} Qe8 {[%emt 0:00:35]} 10. e4 {[%emt 0:01:31]} fxe4 11. Nxe4 {[%emt 0:00:42]} Nxe4 {[%emt 0:27:41]} 12. Qxe4 {[%emt 0:01:07]} Qf7 {[%emt 0:02:33]} 13. Be3 {[%emt 0:03:01]} Bf6 {[%emt 0:14:48]} 14. Rd2 {[%emt 0:03:05]} e5 {[%emt 0:00:30]} 15. d5 Ne7 {[%emt 0:02:42]} 16. Ng5 {[%emt 0:09:40]} Bxg5 {[%emt 0:01:06]} 17. Bxg5 {[%emt 0:00:02]} Nf5 {[%emt 0:01:33]} 18. Rf1 {[%emt 0:07:21]} Qg6 {[%emt 0:10:17]} 19. Be3 {[%emt 0:04:58]} b6 {[%emt 0:01:23]} 20. b3 {[%emt 0:08:14]} Bd7 {[%emt 0:08:17]} 21. a3 {[%emt 0:03:58]} Rf6 {[%emt 0:05:41]} 22. Rb2 {[%emt 0:01:52]} Raf8 {[%emt 0:05:46]} 23. Bc1 {[%emt 0:05:17]} Qe8 {[%emt 0:10:48]} 24. b4 {[%emt 0:06:41]} axb4 {[%emt 0:00:10]} 25. axb4 {[%emt 0:00:04]} Nd4 26. f4 {[%emt 0:02:35]} Qh5 {[%emt 0:02:47]} 27. Rbf2 {[%emt 0:07:29]} Bf5 {[%emt 0:01:36]} 28. Qe3 {[%emt 0:02:39]} Bg4 {[%emt 0:01:56]} 29. fxe5 {[%emt 0:05:36]} Rxf2 {[%emt 0:00:23]} 30. Rxf2 {[%emt 0:00:13]} Ne2+ {[%emt 0:00:32]} 31. Rxe2 {[%emt 0:00:52]} Bxe2 {[%emt 0:00:05]} 32. exd6 {[%emt 0:01:13]} cxd6 {[%emt 0:01:16]} 33. Qe6+ {[%emt 0:02:29]} Kh8 {[%emt 0:00:07]} 34. Qxd6 {[%emt 0:01:28]} Qf5 {[%emt 0:00:21]} 35. Qf4 {[%emt 0:00:21]} Qc8 {[%emt 0:00:29]} 36. Qd4 {[%emt 0:00:33]} Qxc4 {[%emt 0:01:16]} 37. Qxc4 {[%emt 0:00:17]} Bxc4 {[%emt 0:00:03]} 38. Bf4 {[%emt 0:03:15]} Rd8 {[%emt 0:01:01]} 39. d6 {[%emt 0:00:02]} Be6 {[%emt 0:00:12]} 40. Bc6 {[%emt 0:00:24]} Kg8 {[%emt 0:00:28]} 41. Kf2 {[%emt 0:00:54]} Kf7 {[%emt 0:00:11]} 42. Ke3 {[%emt 0:00:01]} Bd7 {[%emt 0:00:30]} 43. Bd5+ {[%emt 0:00:31]} Be6 {[%emt 0:00:04]} 44. Kd4 {[%emt 0:01:02]} g5 {[%emt 0:01:40]} 45. Be5 {[%emt 0:00:30]} Rc8 {[%emt 0:00:30]} 46. g4 {[%emt 0:02:00]} Rc1 {[%emt 0:00:17]} 47. Be4 {[%emt 0:00:30]} Rc4+ {[%emt 0:00:24]} 48. Ke3 {[%emt 0:02:12]} Rxb4 {[%emt 0:00:22]} 49. Bxh7 {[%emt 0:01:24]} Rxg4 {[%emt 0:00:04]} 50. Bd3 {[%emt 0:00:39]} Rb4 {[%emt 0:00:27]} 51. Kd2 {[%emt 0:00:33]} Bd7 {[%emt 0:01:51]} 52. Kc3 {[%emt 0:00:29]} Rh4 {[%emt 0:00:21]} 53. Bg3 {[%emt 0:00:25]} Rg4 {[%emt 0:00:10]} 54. Bc4+ {[%emt 0:00:46]} Rxc4+ {[%emt 0:00:15]} 55. Kxc4 {[%emt 0:00:03]} Bc6 {[%emt 0:00:20]} 56. Bf2 {[%emt 0:00:22]} Ke6 {[%emt 0:00:15]} 57. Bxb6 {[%emt 0:00:43]} Kxd6 {[%emt 0:00:05]} 58. Bd8 {[%emt 0:00:00]} g4 {[%emt 0:00:05]} 59. Kd4 {[%emt 0:00:06]} Bf3 {[%emt 0:00:04]} 60. Ke3 {[%emt 0:00:04]} Ke6 {[%emt 0:00:04]} 61. h4 {[%emt 0:00:05]} gxh3 {[%emt 0:00:04]} 62. Kxf3 {[%emt 0:00:03]} h2 {[%emt 0:00:06]} 63. Kg2 {[%emt 0:00:00]} 1/2-1/2

[Event "Commonwealth Open 2019"]
[Site "Delhi"]
[Date "2019.06.30"]
[Round "2.26"]
[White "Bhambure, Shantanu"]
[Black "Singh Ojasva"]
[Result "1-0"]
[ECO "D35"]
[WhiteElo "2248"]
[BlackElo "1666"]
[Annotator "NA"]
[PlyCount "51"]
[EventDate "2019.06.30"]
[EventType "swiss"]
[EventCountry "IND"]
[SourceTitle "playchess.com"]
[Source "ChessBase"]
[SourceQuality "1"]
[TimeControl "5400+30"]

1. d4 {[%emt 0:04:45]} d5 {[%emt 0:00:00]} 2. c4 {[%emt 0:00:04]} e6 {[%emt 0:00:00]} 3. Nc3 {[%emt 0:00:02]} Nf6 {[%emt 0:00:00]} 4. cxd5 {[%emt 0:00:05]} exd5 {[%emt 0:00:02]} 5. Bg5 {[%emt 0:00:03]} c6 {[%emt 0:01:52]} 6. e3 {[%emt 0:00:05]} Bd6 {[%emt 0:02:05]} 7. Bd3 {[%emt 0:00:26]} O-O {[%emt 0:00:12]} 8. Qc2 {[%emt 0:00:19]} h6 {[%emt 0:00:09]} 9. Bh4 {[%emt 0:00:15]} Nbd7 {[%emt 0:01:16]} 10. Nf3 {[%emt 0:06:18]} Re8 {[%emt 0:01:47]} 11. O-O {[%emt 0:01:27]} Nf8 {[%emt 0:07:00]} 12. h3 {[%emt 0:14:18]} g5 {[%emt 0:06:45]} 13. Bg3 {[%emt 0:00:35]} g4 {[%emt 0:11:44]} 14. Ne5 {[%emt 0:09:45]} gxh3 {[%emt 0:03:06]} 15. f4 {[%emt 0:02:17]} Ng4 {[%emt 0:07:44]} 16. Qe2 {[%emt 0:02:51]} hxg2 {[%emt 0:02:12]} 17. Kxg2 {[%emt 0:02:41]} h5 {[%emt 0:01:31]} 18. Rh1 {[%emt 0:01:43]} f6 {[%emt 0:00:26]} 19. Rxh5 {[%emt 0:01:43]} fxe5 {[%emt 0:01:27]} 20. fxe5 {[%emt 0:06:04]} Be7 {[%emt 0:08:31]} 21. Rah1 {[%emt 0:00:43]} Bg5 {[%emt 0:02:05]} 22. Bf4 {[%emt 0:02:24]} Bxf4 {[%emt 0:07:04]} 23. exf4 {[%emt 0:00:17]} Re7 {[%emt 0:00:51]} 24. Rh8+ {[%emt 0:02:53]} Kf7 {[%emt 0:02:06]} 25. R1h7+ {[%emt 0:01:13]} Ke8 {[%emt 0:01:58]} 26. Rxf8+ {[%emt 0:00:15]} 1-0

[Event "Commonwealth Open 2019"]
[Site "Delhi"]
[Date "2019.06.30"]
[Round "2.27"]
[White "Dubey Sanchay"]
[Black "Saurabh Anand"]
[Result "0-1"]
[ECO "C95"]
[WhiteElo "1823"]
[BlackElo "2351"]
[Annotator "NA"]
[PlyCount "71"]
[EventDate "2019.06.30"]
[EventType "swiss"]
[EventCountry "IND"]
[SourceTitle "playchess.com"]
[Source "ChessBase"]
[SourceQuality "1"]
[TimeControl "5400+30"]

1. e4 {[%emt 0:00:00]} e5 {[%emt 0:00:00]} 2. Nf3 {[%emt 0:00:00]} Nc6 {[%emt 0:00:11]} 3. Bb5 {[%emt 0:00:00]} a6 {[%emt 0:00:07]} 4. Ba4 {[%emt 0:00:00]} Nf6 {[%emt 0:00:10]} 5. O-O {[%emt 0:00:07]} Be7 {[%emt 0:00:05]} 6. Re1 {[%emt 0:00:07]} b5 {[%emt 0:00:51]} 7. Bb3 d6 {[%emt 0:00:14]} 8. c3 {[%emt 0:00:04]} O-O {[%emt 0:00:10]} 9. h3 {[%emt 0:00:02]} Nb8 {[%emt 0:00:25]} 10. d4 {[%emt 0:00:02]} Nbd7 {[%emt 0:00:08]} 11. Nbd2 {[%emt 0:00:07]} Bb7 {[%emt 0:01:03]} 12. Bc2 {[%emt 0:00:10]} Re8 {[%emt 0:00:09]} 13. Nf1 {[%emt 0:00:03]} Bf8 {[%emt 0:01:00]} 14. Ng3 {[%emt 0:00:16]} g6 {[%emt 0:00:10]} 15. a4 {[%emt 0:00:06]} c5 {[%emt 0:00:52]} 16. d5 {[%emt 0:00:03]} c4 {[%emt 0:00:09]} 17. Bg5 {[%emt 0:00:05]} Nc5 {[%emt 0:00:31]} 18. Qd2 {[%emt 0:00:53]} Be7 {[%emt 0:00:11]} 19. Kh1 {[%emt 0:04:02]} Nfd7 {[%emt 0:04:26]} 20. Bh6 {[%emt 0:18:45]} Qc7 {[%emt 0:05:32]} 21. a5 {[%emt 0:10:34]} Bc8 {[%emt 0:01:14]} 22. Qe3 {[%emt 0:16:04]} Nb7 {[%emt 0:05:15]} 23. Nf5 {[%emt 0:18:18]} gxf5 {[%emt 0:03:29]} 24. exf5 {[%emt 0:01:20]} Bf6 {[%emt 0:01:11]} 25. Ng5 {[%emt 0:05:59]} Ndc5 {[%emt 0:00:50]} 26. Qg3 {[%emt 0:10:36]} Kh8 {[%emt 0:02:55]} 27. Qh4 {[%emt 0:05:38]} Nd3 {[%emt 0:10:49]} 28. Bxd3 {[%emt 0:05:40]} cxd3 {[%emt 0:00:26]} 29. Bg7+ {[%emt 0:03:24]} Kxg7 {[%emt 0:00:09]} 30. Qxh7+ {[%emt 0:00:03]} Kf8 {[%emt 0:00:09]} 31. Ne4 {[%emt 0:01:11]} Qd8 {[%emt 0:02:00]} 32. b4 {[%emt 0:01:16]} Ke7 {[%emt 0:01:08]} 33. Qh6 {[%emt 0:00:17]} Bh8 {[%emt 0:01:07]} 34. f6+ {[%emt 0:01:03]} Kd7 {[%emt 0:00:30]} 35. Qh5 {[%emt 0:00:42]} Rf8 {[%emt 0:02:12]} 36. Rad1 0-1

[Event "Commonwealth Open 2019"]
[Site "Delhi"]
[Date "2019.06.30"]
[Round "2.28"]
[White "Dutta Sarthak"]
[Black "Wagh Suyog"]
[Result "0-1"]
[ECO "A04"]
[WhiteElo "1702"]
[BlackElo "2250"]
[Annotator "NA"]
[PlyCount "102"]
[EventDate "2019.06.30"]
[EventType "swiss"]
[EventCountry "IND"]
[SourceTitle "playchess.com"]
[Source "ChessBase"]
[SourceQuality "1"]
[TimeControl "5400+30"]

1. Nf3 {[%emt 0:00:06]} c5 {[%emt 0:00:14]} 2. c4 {[%emt 0:00:11]} Nf6 {[%emt 0:00:07]} 3. g3 {[%emt 0:00:19]} b6 {[%emt 0:00:20]} 4. Bg2 {[%emt 0:00:08]} Bb7 {[%emt 0:00:06]} 5. O-O {[%emt 0:00:21]} e6 {[%emt 0:05:06]} 6. Re1 {[%emt 0:02:42]} Be7 {[%emt 0:01:28]} 7. Nc3 {[%emt 0:01:46]} d6 {[%emt 0:00:55]} 8. d3 {[%emt 0:02:34]} O-O {[%emt 0:01:34]} 9. a3 {[%emt 0:01:17]} Nc6 {[%emt 0:06:29]} 10. e4 {[%emt 0:06:34]} Nd7 {[%emt 0:02:49]} 11. Rb1 {[%emt 0:03:11]} Bf6 {[%emt 0:00:58]} 12. Bf4 {[%emt 0:06:12]} Nde5 {[%emt 0:00:56]} 13. Qd2 {[%emt 0:08:28]} Qd7 {[%emt 0:17:46]} 14. Rbd1 {[%emt 0:11:23]} Rac8 {[%emt 0:01:09]} 15. Bg5 {[%emt 0:01:30]} Qe7 {[%emt 0:02:53]} 16. Bxf6 {[%emt 0:02:26]} Qxf6 {[%emt 0:00:20]} 17. Qf4 {[%emt 0:02:14]} Qxf4 {[%emt 0:25:24]} 18. gxf4 {[%emt 0:00:23]} Nxf3+ {[%emt 0:06:00]} 19. Bxf3 {[%emt 0:00:27]} Rfd8 {[%emt 0:00:43]} 20. Bg2 {[%emt 0:05:39]} Ba8 {[%emt 0:01:45]} 21. Ne2 {[%emt 0:02:48]} Kf8 {[%emt 0:00:12]} 22. Ng3 {[%emt 0:03:02]} Rb8 {[%emt 0:02:56]} 23. a4 {[%emt 0:12:41]} a6 {[%emt 0:03:40]} 24. e5 {[%emt 0:02:18]} dxe5 {[%emt 0:06:51]} 25. fxe5 {[%emt 0:01:18]} Nb4 {[%emt 0:00:29]} 26. Bxa8 {[%emt 0:01:06]} Rxa8 {[%emt 0:00:01]} 27. Re3 {[%emt 0:00:47]} Ra7 {[%emt 0:01:00]} 28. Ne4 {[%emt 0:01:02]} Nc6 {[%emt 0:00:30]} 29. f4 {[%emt 0:03:22]} Rad7 {[%emt 0:00:18]} 30. Rd2 {[%emt 0:01:07]} Rd4 {[%emt 0:00:53]} 31. Kf2 {[%emt 0:03:21]} Ne7 {[%emt 0:05:09]} 32. Kf3 {[%emt 0:07:06]} Nc6 {[%emt 0:04:23]} 33. h4 {[%emt 0:01:40]} Na5 {[%emt 0:00:44]} 34. Ke2 {[%emt 0:01:51]} f5 {[%emt 0:00:27]} 35. exf6 {[%emt 0:01:29]} gxf6 {[%emt 0:00:06]} 36. Rc2 {[%emt 0:00:09]} Kf7 {[%emt 0:00:26]} 37. Rc3 {[%emt 0:01:46]} h6 {[%emt 0:00:19]} 38. Kf3 {[%emt 0:01:10]} Rg8 {[%emt 0:01:15]} 39. Re1 {[%emt 0:00:55]} Rd7 {[%emt 0:00:52]} 40. Nf2 {[%emt 0:00:36]} Nc6 {[%emt 0:00:23]} 41. Ne4 {[%emt 0:01:31]} Nd4+ {[%emt 0:00:51]} 42. Ke3 {[%emt 0:00:55]} a5 {[%emt 0:00:45]} 43. Rf1 {[%emt 0:00:48]} Rg4 {[%emt 0:00:54]} 44. Nf2 {[%emt 0:00:17]} Rg3+ {[%emt 0:00:51]} 45. Kd2 {[%emt 0:00:34]} Rf3 {[%emt 0:00:14]} 46. Ke1 {[%emt 0:00:17]} Re3+ {[%emt 0:00:21]} 47. Kd2 {[%emt 0:00:18]} Rf3 {[%emt 0:00:18]} 48. Ke1 {[%emt 0:00:01]} Rxf4 {[%emt 0:00:14]} 49. Ne4 {[%emt 0:00:22]} Rxf1+ {[%emt 0:00:11]} 50. Kxf1 {[%emt 0:00:02]} f5 {[%emt 0:00:41]} 51. Nd2 {[%emt 0:00:15]} Kf6 {[%emt 0:00:12]} 0-1

[Event "Commonwealth Open 2019"]
[Site "Delhi"]
[Date "2019.06.30"]
[Round "2.29"]
[White "Michelle Catherina, P."]
[Black "Hoareau, Benjamin"]
[Result "1-0"]
[ECO "B41"]
[WhiteElo "2182"]
[BlackElo "1779"]
[Annotator "NA"]
[PlyCount "87"]
[EventDate "2019.06.30"]
[EventType "swiss"]
[EventCountry "IND"]
[SourceTitle "playchess.com"]
[Source "ChessBase"]
[SourceQuality "1"]
[TimeControl "5400+30"]

1. e4 {[%emt 0:00:25]} c5 {[%emt 0:04:33]} 2. Nf3 {[%emt 0:01:15]} e6 {[%emt 0:01:50]} 3. d4 {[%emt 0:00:11]} cxd4 {[%emt 0:00:31]} 4. Nxd4 {[%emt 0:00:07]} a6 {[%emt 0:01:36]} 5. Be2 {[%emt 0:03:06]} Qc7 {[%emt 0:00:49]} 6. O-O {[%emt 0:01:38]} Nf6 {[%emt 0:01:12]} 7. Nc3 {[%emt 0:01:05]} Bb4 {[%emt 0:00:27]} 8. Qd3 {[%emt 0:04:20]} b6 {[%emt 0:03:47]} 9. f4 {[%emt 0:07:30]} Bb7 {[%emt 0:07:36]} 10. e5 {[%emt 0:10:20]} Nd5 {[%emt 0:03:49]} 11. Ne4 {[%emt 0:03:18]} b5 {[%emt 0:04:57]} 12. a4 {[%emt 0:08:09]} Nc6 {[%emt 0:02:23]} 13. c3 {[%emt 0:12:07]} Be7 {[%emt 0:04:02]} 14. axb5 {[%emt 0:03:29]} Nxd4 {[%emt 0:02:19]} 15. Qxd4 {[%emt 0:02:56]} a5 {[%emt 0:06:26]} 16. c4 {[%emt 0:06:35]} Nb4 {[%emt 0:00:56]} 17. Nd6+ {[%emt 0:02:51]} Bxd6 {[%emt 0:05:35]} 18. exd6 {[%emt 0:00:38]} Qc8 {[%emt 0:00:13]} 19. Be3 {[%emt 0:08:32]} O-O {[%emt 0:02:30]} 20. Qc3 {[%emt 0:03:58]} Qd8 {[%emt 0:09:35]} 21. Bd4 {[%emt 0:03:01]} f6 {[%emt 0:03:19]} 22. Bc5 {[%emt 0:00:53]} Rc8 {[%emt 0:01:21]} 23. Bxb4 {[%emt 0:02:04]} axb4 {[%emt 0:01:12]} 24. Qxb4 {[%emt 0:00:11]} Qb6+ {[%emt 0:00:46]} 25. Kh1 {[%emt 0:00:54]} Qe3 {[%emt 0:02:20]} 26. Rae1 {[%emt 0:01:36]} Qh3 {[%emt 0:04:27]} 27. Bf3 {[%emt 0:02:32]} Bxf3 {[%emt 0:01:18]} 28. Rxf3 {[%emt 0:00:08]} Qh4 {[%emt 0:00:04]} 29. b3 {[%emt 0:02:06]} Ra8 {[%emt 0:02:38]} 30. c5 {[%emt 0:03:31]} e5 {[%emt 0:01:52]} 31. Qc4+ {[%emt 0:01:59]} Kh8 {[%emt 0:01:06]} 32. Ref1 {[%emt 0:01:30]} Ra2 {[%emt 0:01:28]} 33. fxe5 {[%emt 0:02:29]} Qg5 {[%emt 0:00:04]} 34. R3f2 {[%emt 0:00:50]} Rxf2 {[%emt 0:00:19]} 35. Rxf2 {[%emt 0:00:03]} Qxe5 {[%emt 0:00:10]} 36. h3 {[%emt 0:00:42]} Ra8 {[%emt 0:00:08]} 37. Rf1 {[%emt 0:00:49]} h6 {[%emt 0:01:10]} 38. b6 {[%emt 0:00:20]} Rb8 {[%emt 0:02:20]} 39. b4 {[%emt 0:00:10]} Rc8 {[%emt 0:02:33]} 40. Rd1 {[%emt 0:00:39]} Qh5 {[%emt 0:02:58]} 41. Qd5 {[%emt 0:00:29]} Qe8 {[%emt 0:01:37]} 42. b5 {[%emt 0:00:39]} Rb8 {[%emt 0:00:37]} 43. b7 {[%emt 0:00:19]} Qe2 {[%emt 0:00:46]} 44. c6 {[%emt 0:00:08]} 1-0

[Event "Commonwealth Open 2019"]
[Site "Delhi"]
[Date "2019.06.30"]
[Round "2.30"]
[White "Hanif, Mollah"]
[Black "Sharma Isha"]
[Result "1/2-1/2"]
[ECO "C41"]
[WhiteElo "1650"]
[BlackElo "2151"]
[Annotator "NA"]
[PlyCount "115"]
[EventDate "2019.06.30"]
[EventType "swiss"]
[EventCountry "IND"]
[SourceTitle "playchess.com"]
[Source "ChessBase"]
[SourceQuality "1"]
[TimeControl "5400+30"]

1. e4 {[%emt 0:11:31]} d6 {[%emt 0:00:06]} 2. d4 {[%emt 0:00:15]} Nf6 {[%emt 0:00:05]} 3. Nc3 {[%emt 0:00:15]} e5 {[%emt 0:00:04]} 4. Nf3 {[%emt 0:00:37]} Nbd7 {[%emt 0:00:04]} 5. Bc4 {[%emt 0:01:12]} Be7 {[%emt 0:00:05]} 6. O-O {[%emt 0:00:35]} O-O {[%emt 0:00:05]} 7. h3 {[%emt 0:02:49]} c6 {[%emt 0:03:32]} 8. Bb3 {[%emt 0:00:16]} b5 {[%emt 0:01:38]} 9. a3 {[%emt 0:00:28]} a5 {[%emt 0:00:42]} 10. Qe2 {[%emt 0:06:25]} Ba6 {[%emt 0:00:09]} 11. Qe3 {[%emt 0:05:34]} b4 {[%emt 0:04:59]} 12. Ne2 {[%emt 0:00:11]} c5 {[%emt 0:00:11]} 13. dxe5 {[%emt 0:00:43]} dxe5 {[%emt 0:00:05]} 14. Rd1 {[%emt 0:01:48]} c4 {[%emt 0:00:41]} 15. Ba4 {[%emt 0:00:45]} Bc5 {[%emt 0:02:18]} 16. Qd2 {[%emt 0:04:42]} Bxf2+ {[%emt 0:00:54]} 17. Kf1 {[%emt 0:02:12]} c3 {[%emt 0:15:10]} 18. bxc3 {[%emt 0:06:31]} Nxe4 {[%emt 0:00:20]} 19. Qxd7 {[%emt 0:00:48]} Qb6 {[%emt 0:00:04]} 20. Rd3 {[%emt 0:04:00]} Rad8 {[%emt 0:00:17]} 21. Qc6 {[%emt 0:01:30]} Rxd3 {[%emt 0:00:23]} 22. cxd3 {[%emt 0:00:47]} Bxd3 {[%emt 0:00:09]} 23. Qxb6 {[%emt 0:00:14]} Bxb6 {[%emt 0:00:04]} 24. Nxe5 {[%emt 0:02:36]} Bxe2+ {[%emt 0:05:46]} 25. Kxe2 {[%emt 0:02:42]} Nxc3+ {[%emt 0:00:08]} 26. Kf3 {[%emt 0:00:28]} Nxa4 {[%emt 0:01:06]} 27. axb4 {[%emt 0:00:19]} Nc3 {[%emt 0:00:26]} 28. Nd7 {[%emt 0:04:04]} axb4 {[%emt 0:05:17]} 29. Nxb6 {[%emt 0:02:22]} f6 {[%emt 0:02:49]} 30. Ra8 {[%emt 0:01:37]} Rxa8 {[%emt 0:00:12]} 31. Nxa8 {[%emt 0:00:02]} Na4 {[%emt 0:00:07]} 32. Ke3 {[%emt 0:03:14]} b3 {[%emt 0:00:12]} 33. Kd2 {[%emt 0:00:16]} b2 {[%emt 0:00:21]} 34. Bxb2 {[%emt 0:00:35]} Nxb2 {[%emt 0:00:04]} 35. Nb6 {[%emt 0:00:21]} Kf7 {[%emt 0:00:51]} 36. Kc2 {[%emt 0:00:03]} Ke6 {[%emt 0:00:34]} 37. Kxb2 {[%emt 0:00:03]} Ke5 {[%emt 0:00:13]} 38. Kc2 Kf4 39. Nc4 {[%emt 0:02:40]} Kg3 {[%emt 0:00:59]} 40. Ne3 {[%emt 0:00:03]} g6 {[%emt 0:00:03]} 41. Kd2 {[%emt 0:00:07]} f5 {[%emt 0:00:22]} 42. Ke2 {[%emt 0:02:43]} f4 {[%emt 0:00:37]} 43. Nd5 {[%emt 0:02:01]} Kxg2 {[%emt 0:00:07]} 44. Nxf4+ {[%emt 0:00:04]} Kg3 {[%emt 0:00:04]} 45. Ke3 {[%emt 0:00:27]} g5 {[%emt 0:00:14]} 46. Ne6 {[%emt 0:03:50]} h6 {[%emt 0:00:08]} 47. Nd4 {[%emt 0:00:32]} Kxh3 {[%emt 0:00:16]} 48. Kf2 {[%emt 0:00:04]} h5 {[%emt 0:02:53]} 49. Kg1 {[%emt 0:00:11]} Kg3 {[%emt 0:01:26]} 50. Ne2+ {[%emt 0:04:16]} Kf3 {[%emt 0:00:28]} 51. Nd4+ {[%emt 0:00:17]} Ke4 {[%emt 0:00:20]} 52. Ne2 {[%emt 0:01:01]} h4 {[%emt 0:00:23]} 53. Kg2 {[%emt 0:00:12]} Ke3 {[%emt 0:01:03]} 54. Ng1 {[%emt 0:00:54]} g4 {[%emt 0:00:19]} 55. Nh3 {[%emt 0:00:26]} g3 {[%emt 0:01:03]} 56. Ng5 {[%emt 0:00:15]} Kf4 {[%emt 0:00:08]} 57. Nh3+ {[%emt 0:00:02]} Kg4 {[%emt 0:00:05]} 58. Ng1 1/2-1/2

[Event "Commonwealth Open 2019"]
[Site "Delhi"]
[Date "2019.07.01"]
[Round "3.1"]
[White "Thipsay, Praveen M"]
[Black "Gupta, Abhijeet"]
[Result "0-1"]
[ECO "B89"]
[WhiteElo "2405"]
[BlackElo "2606"]
[Annotator "ChessBase"]
[PlyCount "70"]
[EventDate "2019.06.30"]
[EventType "swiss"]
[EventCountry "IND"]
[SourceTitle "playchess.com"]
[Source "ChessBase"]
[SourceQuality "1"]
[TimeControl "5400+30"]

1. e4 {[%emt 0:00:00]} c5 {[%emt 0:00:00]} 2. Nf3 {[%emt 0:00:00]} d6 {[%emt 0:00:00]} 3. d4 {[%emt 0:00:04]} cxd4 {[%emt 0:00:00]} 4. Nxd4 {[%emt 0:00:12]} Nf6 {[%emt 0:00:00]} 5. Nc3 {[%emt 0:00:14]} Nc6 {[%emt 0:00:00]} 6. Bc4 {[%emt 0:00:51]} e6 {[%emt 0:00:00]} 7. Be3 {[%emt 0:00:15]} a6 {[%emt 0:00:03]} 8. O-O {[%emt 0:00:35]} Be7 {[%emt 0:02:12]} 9. Bb3 {[%emt 0:00:13]} Qc7 {[%emt 0:01:05]} 10. f4 {[%emt 0:03:01]} b5 {[%emt 0:07:33]} 11. f5 {[%emt 0:07:13]} Nxd4 {[%emt 0:01:09]} 12. Bxd4 {[%emt 0:00:24]} b4 {[%emt 0:00:25]} 13. Na4 {[%emt 0:16:09]} e5 {[%emt 0:02:34]} 14. Be3 {[%emt 0:07:13]} Rb8 {[%emt 0:01:24]} 15. c3 {[%emt 0:04:35]} O-O {[%emt 0:02:28]} 16. cxb4 {[%emt 0:00:24]} Rxb4 {[%emt 0:03:31]} 17. Nc3 {[%emt 0:04:43]} Bb7 {[%emt 0:02:00]} 18. Rc1 {[%emt 0:16:37]} Qb8 {[%emt 0:01:43]} 19. a3 {[%emt 0:03:56]} Rxe4 {[%emt 0:00:23]} 20. Nxe4 {[%emt 0:00:13]} Bxe4 {[%emt 0:00:07]} 21. Rf2 {[%emt 0:02:39]} h6 {[%emt 0:02:54]} 22. Bc2 {[%emt 0:15:21]} Ba8 {[%emt 0:04:01]} 23. b4 {[%emt 0:00:05]} d5 {[%emt 0:08:39]} 24. Bc5 {[%emt 0:00:09]} Bxc5 {[%emt 0:00:18]} 25. bxc5 {[%emt 0:00:05]} d4 {[%emt 0:00:04]} 26. Ba4 {[%emt 0:12:58]} Rc8 {[%emt 0:05:08]} 27. c6 {[%emt 0:02:40]} Ne4 {[%emt 0:00:41]} 28. Rfc2 {[%emt 0:00:21]} Nc3 {[%emt 0:04:58]} 29. Rxc3 {[%emt 0:00:37]} dxc3 {[%emt 0:00:03]} 30. Rxc3 {[%emt 0:00:13]} Bxc6 {[%emt 0:01:03]} 31. Qc1 {[%emt 0:01:03]} Bb7 {[%emt 0:01:00]} 32. h3 {[%emt 0:02:01]} Qa7+ {[%emt 0:01:11]} 33. Kf1 {[%emt 0:00:08]} Rd8 {[%emt 0:04:47]} 34. Rc7 {[%emt 0:00:50]} Qb6 {[%emt 0:01:51]} 35. Rc5 {[%emt 0:00:44]} Rd4 {[%emt 0:01:30]} 0-1

[Event "Commonwealth Open 2019"]
[Site "Delhi"]
[Date "2019.07.01"]
[Round "3.2"]
[White "Nitin, S.."]
[Black "Aravindh, Chithambaram Vr."]
[Result "0-1"]
[ECO "B53"]
[WhiteElo "2398"]
[BlackElo "2598"]
[Annotator "ChessBase"]
[PlyCount "68"]
[EventDate "2019.06.30"]
[EventType "swiss"]
[EventCountry "IND"]
[SourceTitle "playchess.com"]
[Source "ChessBase"]
[SourceQuality "1"]
[TimeControl "5400+30"]

1. e4 {[%emt 0:00:04]} c5 {[%emt 0:00:00]} 2. Nf3 {[%emt 0:00:09]} d6 {[%emt 0:00:00]} 3. d4 {[%emt 0:00:26]} cxd4 {[%emt 0:00:00]} 4. Qxd4 {[%emt 0:00:18]} Nf6 {[%emt 0:00:00]} 5. h3 {[%emt 0:06:53]} g6 {[%emt 0:00:12]} 6. Be2 {[%emt 0:00:42]} Bg7 {[%emt 0:00:07]} 7. O-O {[%emt 0:01:05]} O-O {[%emt 0:00:08]} 8. Qe3 {[%emt 0:10:28]} Nbd7 {[%emt 0:00:20]} 9. c4 {[%emt 0:01:47]} b6 {[%emt 0:00:20]} 10. Nc3 {[%emt 0:00:23]} Bb7 {[%emt 0:00:08]} 11. Rb1 {[%emt 0:04:08]} Nc5 {[%emt 0:00:25]} 12. Nd2 {[%emt 0:00:25]} e6 {[%emt 0:01:05]} 13. Bf3 {[%emt 0:17:58]} d5 {[%emt 0:04:27]} 14. Qe2 {[%emt 0:05:51]} d4 {[%emt 0:10:54]} 15. Nd1 {[%emt 0:00:28]} e5 {[%emt 0:13:37]} 16. b4 {[%emt 0:05:15]} Ne6 {[%emt 0:01:06]} 17. g3 {[%emt 0:06:26]} a5 {[%emt 0:08:17]} 18. a3 {[%emt 0:02:00]} axb4 {[%emt 0:02:33]} 19. axb4 {[%emt 0:01:18]} Bh6 {[%emt 0:06:10]} 20. Qd3 {[%emt 0:02:26]} Ra4 {[%emt 0:15:49]} 21. Nb2 {[%emt 0:08:40]} Ra7 {[%emt 0:00:28]} 22. Re1 {[%emt 0:03:01]} Qa8 {[%emt 0:00:17]} 23. Bg2 {[%emt 0:05:57]} Ra3 {[%emt 0:06:59]} 24. Qe2 {[%emt 0:00:22]} d3 {[%emt 0:03:34]} 25. Nxd3 {[%emt 0:00:49]} Nd4 {[%emt 0:00:07]} 26. Qf1 {[%emt 0:00:09]} Bxd2 {[%emt 0:00:52]} 27. Bxd2 {[%emt 0:00:32]} Nxe4 {[%emt 0:01:37]} 28. Bh6 {[%emt 0:07:27]} Nd2 {[%emt 0:05:08]} 29. Bxd2 {[%emt 0:00:40]} Bxg2 {[%emt 0:00:06]} 30. Qxg2 {[%emt 0:00:17]} Rxd3 {[%emt 0:07:47]} 31. Be3 {[%emt 0:00:40]} Nf3+ {[%emt 0:00:20]} 32. Kf1 {[%emt 0:00:37]} e4 {[%emt 0:02:19]} 33. Rec1 {[%emt 0:01:30]} Qa2 {[%emt 0:00:12]} 34. Ra1 {[%emt 0:00:19]} Rd1+ {[%emt 0:00:05]} 0-1